[Event "Early-Titled-Tuesday-Blitz-June-18-2024"]
[Site "Chess.com"]
[Date "2024.06.18"]
[Round "10"]
[White "Stanbad1"]
[Black "AlexeiShirov"]
[Result "1/2-1/2"]
[WhiteElo "2722"]
[BlackElo "2862"]
[TimeControl "180+1"]
[EndTime "9:57:46 PDT"]
[Termination "Game drawn - insufficient material"]

1. d4 {[%clk 0:03:00.9]} 1... d5 {[%clk 0:02:59.4]} 2. Nc3 {[%clk 0:03:00.9]}
2... Nf6 {[%clk 0:02:54.8]} 3. Bf4 {[%clk 0:03:01.2]} 3... Bf5 {[%clk
0:02:46.8]} 4. e3 {[%clk 0:02:59.8]} 4... e6 {[%clk 0:02:46.3]} 5. Nf3 {[%clk
0:02:58.1]} 5... a6 {[%clk 0:02:30.6]} 6. Ne5 {[%clk 0:02:57.6]} 6... Nbd7
{[%clk 0:02:17.8]} 7. g4 {[%clk 0:02:52.4]} 7... Nxe5 {[%clk 0:02:15.4]} 8. gxf5
{[%clk 0:02:52]} 8... Nc6 {[%clk 0:02:11.5]} 9. fxe6 {[%clk 0:02:51.7]} 9...
fxe6 {[%clk 0:02:11.2]} 10. Bh3 {[%clk 0:02:52.3]} 10... Qe7 {[%clk 0:02:07.2]}
11. Qf3 {[%clk 0:02:51.9]} 11... O-O-O {[%clk 0:02:04.2]} 12. O-O-O {[%clk
0:02:51.1]} 12... Kb8 {[%clk 0:02:01.9]} 13. e4 {[%clk 0:02:49.4]} 13... dxe4
{[%clk 0:01:59.4]} 14. Nxe4 {[%clk 0:02:47.7]} 14... Rxd4 {[%clk 0:01:56.5]} 15.
Rxd4 {[%clk 0:02:34.6]} 15... Nxd4 {[%clk 0:01:55.5]} 16. Qd3 {[%clk 0:02:35.2]}
16... Nc6 {[%clk 0:01:38.3]} 17. Re1 {[%clk 0:02:29.7]} 17... Nd5 {[%clk
0:01:33.6]} 18. Bg5 {[%clk 0:02:26]} 18... Qf7 {[%clk 0:01:32.4]} 19. a3 {[%clk
0:02:21.3]} 19... h6 {[%clk 0:01:26.6]} 20. Bd2 {[%clk 0:02:18]} 20... g5 {[%clk
0:01:23.7]} 21. Bxe6 {[%clk 0:01:54.2]} 21... Qxe6 {[%clk 0:01:22.9]} 22. Nc3
{[%clk 0:01:53.7]} 22... Nf4 {[%clk 0:01:19.7]} 23. Rxe6 {[%clk 0:01:38]} 23...
Nxd3+ {[%clk 0:01:19.5]} 24. cxd3 {[%clk 0:01:38.9]} 24... Bd6 {[%clk
0:01:19.7]} 25. h3 {[%clk 0:01:34.9]} 25... Nd4 {[%clk 0:01:19.5]} 26. Rf6
{[%clk 0:01:32.9]} 26... Be5 {[%clk 0:01:16.5]} 27. Rf7 {[%clk 0:01:31.6]} 27...
Nb3+ {[%clk 0:01:15.3]} 28. Kc2 {[%clk 0:01:31.4]} 28... Nxd2 {[%clk 0:01:15.8]}
29. Kxd2 {[%clk 0:01:32.3]} 29... h5 {[%clk 0:01:15.9]} 30. Ne4 {[%clk
0:01:28.3]} 30... Bxb2 {[%clk 0:01:13.9]} 31. a4 {[%clk 0:01:26.8]} 31... g4
{[%clk 0:01:11.8]} 32. hxg4 {[%clk 0:01:22.1]} 32... hxg4 {[%clk 0:01:10.9]} 33.
Rf5 {[%clk 0:01:21.2]} 33... Rg8 {[%clk 0:01:06.6]} 34. Ke3 {[%clk 0:01:18.4]}
34... Bc1+ {[%clk 0:01:04.4]} 35. Ke2 {[%clk 0:01:18]} 35... Rg7 {[%clk
0:01:00.7]} 36. d4 {[%clk 0:01:18.1]} 36... Ka7 {[%clk 0:00:55.3]} 37. d5 {[%clk
0:01:16.8]} 37... Ba3 {[%clk 0:00:52]} 38. Kd3 {[%clk 0:01:14.5]} 38... Kb6
{[%clk 0:00:50.5]} 39. Kc4 {[%clk 0:01:14.2]} 39... Bb2 {[%clk 0:00:47.3]} 40.
d6 {[%clk 0:01:11.3]} 40... cxd6 {[%clk 0:00:45]} 41. Nxd6 {[%clk 0:01:11.3]}
41... Rc7+ {[%clk 0:00:41.9]} 42. Kb3 {[%clk 0:01:11.4]} 42... Bd4 {[%clk
0:00:39.9]} 43. Nc4+ {[%clk 0:01:06.1]} 43... Ka7 {[%clk 0:00:39.2]} 44. Rf4
{[%clk 0:01:06.6]} 44... Rd7 {[%clk 0:00:36.5]} 45. Rxg4 {[%clk 0:01:02.8]}
45... Bxf2 {[%clk 0:00:36.1]} 46. Ne5 {[%clk 0:01:01.8]} 46... Rd5 {[%clk
0:00:35.2]} 47. Re4 {[%clk 0:00:59.4]} 47... Bd4 {[%clk 0:00:34.1]} 48. Nc4
{[%clk 0:00:58.7]} 48... Bc5 {[%clk 0:00:33.3]} 49. Kc3 {[%clk 0:00:57.6]} 49...
Rh5 {[%clk 0:00:32.7]} 50. Ne5 {[%clk 0:00:55]} 50... Bd6 {[%clk 0:00:31.6]} 51.
Nd3 {[%clk 0:00:54.9]} 51... b5 {[%clk 0:00:30]} 52. axb5 {[%clk 0:00:53.8]}
52... axb5 {[%clk 0:00:29.9]} 53. Re6 {[%clk 0:00:53.9]} 53... Bc7 {[%clk
0:00:29.1]} 54. Kb4 {[%clk 0:00:47]} 54... Bb6 {[%clk 0:00:28.8]} 55. Ne5 {[%clk
0:00:45.2]} 55... Kb7 {[%clk 0:00:25]} 56. Nd3 {[%clk 0:00:32.4]} 56... Kc7
{[%clk 0:00:24]} 57. Re5 {[%clk 0:00:30.7]} 57... Rxe5 {[%clk 0:00:22.8]} 58.
Nxe5 {[%clk 0:00:31.6]} 58... Kd6 {[%clk 0:00:22.9]} 59. Kxb5 {[%clk 0:00:31.2]}
1/2-1/2

[Event "Early-Titled-Tuesday-Blitz-June-18-2024"]
[Site "Chess.com"]
[Date "2024.06.18"]
[Round "10"]
[White "talaicito"]
[Black "pavelalexandru07"]
[Result "1-0"]
[WhiteElo "2294"]
[BlackElo "2448"]
[TimeControl "180+1"]
[EndTime "9:57:46 PDT"]
[Termination "talaicito won by checkmate"]

1. d4 {[%clk 0:02:55.5]} 1... d5 {[%clk 0:02:58.8]} 2. Bf4 {[%clk 0:02:55]} 2...
Nf6 {[%clk 0:02:57]} 3. Nc3 {[%clk 0:02:55.2]} 3... a6 {[%clk 0:02:57.2]} 4. e3
{[%clk 0:02:55.7]} 4... e6 {[%clk 0:02:57.7]} 5. Nf3 {[%clk 0:02:54.5]} 5... c5
{[%clk 0:02:57.2]} 6. dxc5 {[%clk 0:02:54.8]} 6... Bxc5 {[%clk 0:02:56.8]} 7.
Bd3 {[%clk 0:02:55.7]} 7... Nc6 {[%clk 0:02:56.6]} 8. O-O {[%clk 0:02:56.4]}
8... O-O {[%clk 0:02:56.8]} 9. e4 {[%clk 0:02:56.7]} 9... dxe4 {[%clk
0:02:54.6]} 10. Nxe4 {[%clk 0:02:57.6]} 10... Nxe4 {[%clk 0:02:54.8]} 11. Bxe4
{[%clk 0:02:58.5]} 11... Qe7 {[%clk 0:02:43.2]} 12. Bxh7+ {[%clk 0:02:44.9]}
12... Kxh7 {[%clk 0:02:43.2]} 13. Ng5+ {[%clk 0:02:45.2]} 13... Kg6 {[%clk
0:02:43.8]} 14. Qd3+ {[%clk 0:02:42.1]} 14... f5 {[%clk 0:02:40.4]} 15. Rae1
{[%clk 0:02:14.9]} 15... e5 {[%clk 0:02:29.3]} 16. Qh3 {[%clk 0:02:04.4]} 16...
Qe8 {[%clk 0:01:30.3]} 17. Nf3 {[%clk 0:01:40.9]} 17... e4 {[%clk 0:01:23]} 18.
Qg3+ {[%clk 0:01:31]} 18... Kh7 {[%clk 0:01:15.2]} 19. Ng5+ {[%clk 0:01:30.5]}
19... Kg8 {[%clk 0:00:50.9]} 20. Kh1 {[%clk 0:01:28.7]} 20... Nd4 {[%clk
0:00:37.6]} 21. Qc3 {[%clk 0:01:10.7]} 21... Qc6 {[%clk 0:00:27.7]} 22. Qh3
{[%clk 0:00:53.1]} 22... Qg6 {[%clk 0:00:27.1]} 23. Qc3 {[%clk 0:00:50.7]} 23...
b6 {[%clk 0:00:24]} 24. b4 {[%clk 0:00:46.9]} 24... Ne6 {[%clk 0:00:18.2]} 25.
Nxe6 {[%clk 0:00:45.6]} 25... Bxe6 {[%clk 0:00:18.6]} 26. bxc5 {[%clk
0:00:45.6]} 26... Rac8 {[%clk 0:00:18.9]} 27. c6 {[%clk 0:00:44.5]} 27... b5
{[%clk 0:00:16.8]} 28. c7 {[%clk 0:00:44]} 28... Bc4 {[%clk 0:00:16.9]} 29. Rg1
{[%clk 0:00:43]} 29... Rf7 {[%clk 0:00:17.4]} 30. a4 {[%clk 0:00:40.4]} 30...
Qe6 {[%clk 0:00:16.9]} 31. axb5 {[%clk 0:00:39.5]} 31... axb5 {[%clk 0:00:17.1]}
32. Rd1 {[%clk 0:00:38.3]} 32... Rd7 {[%clk 0:00:17.2]} 33. h3 {[%clk
0:00:35.9]} 33... Kf7 {[%clk 0:00:13.1]} 34. Be5 {[%clk 0:00:33.2]} 34... g5
{[%clk 0:00:12.7]} 35. Bh8 {[%clk 0:00:31.3]} 35... Kg6 {[%clk 0:00:11.4]} 36.
Rxd7 {[%clk 0:00:28.7]} 36... Qxd7 {[%clk 0:00:11.5]} 37. Qf6+ {[%clk
0:00:28.6]} 37... Kh7 {[%clk 0:00:12]} 38. Qxg5 {[%clk 0:00:21.6]} 38... Kxh8
{[%clk 0:00:11.9]} 39. Qf6+ {[%clk 0:00:17]} 39... Kh7 {[%clk 0:00:09.8]} 40.
Qh4+ {[%clk 0:00:16.2]} 40... Kg7 {[%clk 0:00:09.8]} 41. Qg5+ {[%clk 0:00:14.3]}
41... Kf7 {[%clk 0:00:10.1]} 42. Qh5+ {[%clk 0:00:14.1]} 42... Ke6 {[%clk
0:00:10.4]} 43. Rd1 {[%clk 0:00:13.8]} 43... Qxc7 {[%clk 0:00:08.9]} 44. Qg6+
{[%clk 0:00:11.6]} 44... Ke5 {[%clk 0:00:06.6]} 45. g4 {[%clk 0:00:08.7]} 45...
Qc6 {[%clk 0:00:03.4]} 46. Qxf5# {[%clk 0:00:07.2]} 1-0

[Event "Early-Titled-Tuesday-Blitz-June-18-2024"]
[Site "Chess.com"]
[Date "2024.06.18"]
[Round "10"]
[White "HATilay"]
[Black "Zhani-Z"]
[Result "1-0"]
[WhiteElo "2661"]
[BlackElo "2470"]
[TimeControl "180+1"]
[EndTime "9:57:48 PDT"]
[Termination "HATilay won by checkmate"]

1. e4 {[%clk 0:03:00.9]} 1... c5 {[%clk 0:02:59.1]} 2. Nf3 {[%clk 0:03:00.5]}
2... d6 {[%clk 0:02:59.6]} 3. d4 {[%clk 0:03:00.8]} 3... cxd4 {[%clk 0:03:00.2]}
4. Nxd4 {[%clk 0:03:01.6]} 4... Nf6 {[%clk 0:03:00.7]} 5. Nc3 {[%clk 0:03:02]}
5... Nc6 {[%clk 0:03:01.2]} 6. Bg5 {[%clk 0:03:00.3]} 6... e6 {[%clk 0:03:01.4]}
7. Qd2 {[%clk 0:03:00.6]} 7... a6 {[%clk 0:03:01.3]} 8. f3 {[%clk 0:02:54.1]}
8... Nxd4 {[%clk 0:02:49.4]} 9. Qxd4 {[%clk 0:02:53.6]} 9... Bd7 {[%clk
0:02:48.9]} 10. h4 {[%clk 0:02:53.4]} 10... Be7 {[%clk 0:02:48.9]} 11. g4 {[%clk
0:02:50.8]} 11... h5 {[%clk 0:02:45.7]} 12. gxh5 {[%clk 0:02:50.9]} 12... Nxh5
{[%clk 0:02:46.2]} 13. Bxe7 {[%clk 0:02:51]} 13... Qxe7 {[%clk 0:02:45.8]} 14.
O-O-O {[%clk 0:02:51.6]} 14... Bc6 {[%clk 0:02:34]} 15. Qxd6 {[%clk 0:02:48.9]}
15... Qxd6 {[%clk 0:02:34.1]} 16. Rxd6 {[%clk 0:02:49.5]} 16... Ke7 {[%clk
0:02:34.7]} 17. Rd1 {[%clk 0:02:45.8]} 17... Rh6 {[%clk 0:02:23.8]} 18. Bh3
{[%clk 0:02:45.6]} 18... Rah8 {[%clk 0:02:22.5]} 19. Rhe1 {[%clk 0:01:59.6]}
19... Nf4 {[%clk 0:02:19.9]} 20. Bg4 {[%clk 0:01:59.7]} 20... Kf6 {[%clk
0:01:50]} 21. h5 {[%clk 0:00:52.9]} 21... Nxh5 {[%clk 0:01:35.4]} 22. Ne2 {[%clk
0:00:53.1]} 22... g6 {[%clk 0:01:27.2]} 23. Nd4 {[%clk 0:00:50.8]} 23... Be8
{[%clk 0:01:26.8]} 24. Bxh5 {[%clk 0:00:46.7]} 24... Rxh5 {[%clk 0:01:26.5]} 25.
f4 {[%clk 0:00:47.4]} 25... Rh2 {[%clk 0:01:20.1]} 26. Re3 {[%clk 0:00:29.2]}
26... Rf2 {[%clk 0:01:16.4]} 27. e5+ {[%clk 0:00:28.9]} 27... Ke7 {[%clk
0:01:15.1]} 28. Rc3 {[%clk 0:00:19.8]} 28... Rxf4 {[%clk 0:01:08.6]} 29. Rc7+
{[%clk 0:00:20.3]} 29... Kf8 {[%clk 0:01:08.9]} 30. Rc8 {[%clk 0:00:15.4]} 30...
Kg7 {[%clk 0:01:08]} 31. Rc7 {[%clk 0:00:08.4]} 31... Kf8 {[%clk 0:00:41.8]} 32.
Rc8 {[%clk 0:00:08.5]} 32... Rf2 {[%clk 0:00:20.6]} 33. Nb3 {[%clk 0:00:05.4]}
33... Rhh2 {[%clk 0:00:17.2]} 34. Kb1 {[%clk 0:00:03.5]} 34... Ke7 {[%clk
0:00:14.1]} 35. Rdd8 {[%clk 0:00:03.4]} 35... Bc6 {[%clk 0:00:10.1]} 36. a3
{[%clk 0:00:02.5]} 36... Rxc2 {[%clk 0:00:09.7]} 37. Nd4 {[%clk 0:00:02.8]}
37... Rxb2+ {[%clk 0:00:09.9]} 38. Kc1 {[%clk 0:00:03.4]} 38... Rb6 {[%clk
0:00:04.6]} 39. Rh8 {[%clk 0:00:01.9]} 39... Bd5 {[%clk 0:00:03.9]} 40. Rc7#
{[%clk 0:00:02]} 1-0

[Event "Early-Titled-Tuesday-Blitz-June-18-2024"]
[Site "Chess.com"]
[Date "2024.06.18"]
[Round "10"]
[White "Resourchess"]
[Black "rollercoaster29"]
[Result "1-0"]
[WhiteElo "2397"]
[BlackElo "2499"]
[TimeControl "180+1"]
[EndTime "9:57:48 PDT"]
[Termination "Resourchess won on time"]

1. d4 {[%clk 0:03:00.9]} 1... d5 {[%clk 0:02:56.5]} 2. c4 {[%clk 0:03:00.4]}
2... dxc4 {[%clk 0:02:51.7]} 3. e3 {[%clk 0:02:57.3]} 3... e5 {[%clk 0:02:49.9]}
4. Nf3 {[%clk 0:02:56.3]} 4... exd4 {[%clk 0:02:49.2]} 5. Bxc4 {[%clk
0:02:55.1]} 5... Bb4+ {[%clk 0:02:46.6]} 6. Bd2 {[%clk 0:02:49.1]} 6... Bxd2+
{[%clk 0:02:46.1]} 7. Qxd2 {[%clk 0:02:48.8]} 7... Nf6 {[%clk 0:02:45]} 8. Qxd4
{[%clk 0:02:39.2]} 8... O-O {[%clk 0:02:42.7]} 9. O-O {[%clk 0:02:36.7]} 9...
Nbd7 {[%clk 0:02:32.7]} 10. Bb3 {[%clk 0:02:24.9]} 10... c5 {[%clk 0:02:30.1]}
11. Qh4 {[%clk 0:02:23.7]} 11... Qe7 {[%clk 0:02:28.5]} 12. Nc3 {[%clk
0:02:22.1]} 12... b6 {[%clk 0:02:13.1]} 13. Nd5 {[%clk 0:01:44]} 13... Nxd5
{[%clk 0:02:07]} 14. Bxd5 {[%clk 0:01:44.9]} 14... Qxh4 {[%clk 0:02:04.7]} 15.
Nxh4 {[%clk 0:01:45.8]} 15... Rb8 {[%clk 0:02:04.9]} 16. Rad1 {[%clk 0:01:43.7]}
16... Nf6 {[%clk 0:02:03.6]} 17. Bf3 {[%clk 0:01:42.2]} 17... Be6 {[%clk
0:02:01.9]} 18. g3 {[%clk 0:01:32.8]} 18... Bxa2 {[%clk 0:01:51.4]} 19. Ra1
{[%clk 0:01:32.7]} 19... Bc4 {[%clk 0:01:51.4]} 20. Rfc1 {[%clk 0:01:32.5]}
20... Bd3 {[%clk 0:01:35.5]} 21. Rxa7 {[%clk 0:01:30.2]} 21... c4 {[%clk
0:01:21.7]} 22. Ng2 {[%clk 0:01:27]} 22... g5 {[%clk 0:01:18.1]} 23. Ne1 {[%clk
0:01:14.7]} 23... Rbd8 {[%clk 0:01:07.2]} 24. Rc7 {[%clk 0:00:48.6]} 24... Rd6
{[%clk 0:00:53]} 25. Nc2 {[%clk 0:00:45.8]} 25... g4 {[%clk 0:00:37.7]} 26. Bc6
{[%clk 0:00:35.2]} 26... Ne8 {[%clk 0:00:10.6]} 27. Bxe8 {[%clk 0:00:31]} 27...
Rxe8 {[%clk 0:00:11.5]} 28. Nd4 {[%clk 0:00:30.9]} 28... Red8 {[%clk 0:00:10]}
29. h3 {[%clk 0:00:24.8]} 29... h5 {[%clk 0:00:08.7]} 30. hxg4 {[%clk
0:00:22.5]} 30... hxg4 {[%clk 0:00:09.6]} 31. Kg2 {[%clk 0:00:22.6]} 31... Be4+
{[%clk 0:00:09.4]} 32. Kf1 {[%clk 0:00:20.2]} 32... Rh6 {[%clk 0:00:08.8]} 33.
Ke1 {[%clk 0:00:19.9]} 33... Rh2 {[%clk 0:00:05.9]} 34. Re7 {[%clk 0:00:15.7]}
34... Bf3 {[%clk 0:00:05.9]} 35. Re5 {[%clk 0:00:09.5]} 35... f6 {[%clk
0:00:03.9]} 36. Re6 {[%clk 0:00:08.8]} 36... Kf7 {[%clk 0:00:03.6]} 37. Rxb6
{[%clk 0:00:08.7]} 37... Rdh8 {[%clk 0:00:01.9]} 38. Rxc4 {[%clk 0:00:06.6]}
38... Rh1+ {[%clk 0:00:01.3]} 39. Kd2 {[%clk 0:00:07]} 39... Rd1+ {[%clk
0:00:01.4]} 40. Kc3 {[%clk 0:00:07.4]} 40... Rh2 {[%clk 0:00:01.3]} 41. Nxf3
{[%clk 0:00:05.9]} 41... gxf3 {[%clk 0:00:01.2]} 42. Rc7+ {[%clk 0:00:06.1]} 1-0

[Event "Early-Titled-Tuesday-Blitz-June-18-2024"]
[Site "Chess.com"]
[Date "2024.06.18"]
[Round "10"]
[White "abelmat"]
[Black "SpongeBob_03"]
[Result "0-1"]
[WhiteElo "2044"]
[BlackElo "2221"]
[TimeControl "180+1"]
[EndTime "9:57:52 PDT"]
[Termination "SpongeBob_03 won on time"]

1. d4 {[%clk 0:03:00.9]} 1... Nf6 {[%clk 0:02:59.6]} 2. c4 {[%clk 0:03:00.2]}
2... e6 {[%clk 0:02:59.4]} 3. Nf3 {[%clk 0:02:59.8]} 3... Bb4+ {[%clk
0:02:58.4]} 4. Bd2 {[%clk 0:02:56.4]} 4... Qe7 {[%clk 0:02:58.5]} 5. Nc3 {[%clk
0:02:54.3]} 5... O-O {[%clk 0:02:57.5]} 6. Qc2 {[%clk 0:02:54]} 6... d6 {[%clk
0:02:54.1]} 7. a3 {[%clk 0:02:53.1]} 7... Bxc3 {[%clk 0:02:53.2]} 8. Bxc3 {[%clk
0:02:54]} 8... Nc6 {[%clk 0:02:49.2]} 9. e4 {[%clk 0:02:53.4]} 9... e5 {[%clk
0:02:47.6]} 10. d5 {[%clk 0:02:52.3]} 10... Nb8 {[%clk 0:02:47.8]} 11. h3 {[%clk
0:02:50.6]} 11... Nh5 {[%clk 0:02:46.7]} 12. O-O-O {[%clk 0:02:42.9]} 12... f5
{[%clk 0:02:44.9]} 13. Bd3 {[%clk 0:02:40.9]} 13... Nf4 {[%clk 0:02:44.7]} 14.
g3 {[%clk 0:02:33.6]} 14... Nxd3+ {[%clk 0:02:42.4]} 15. Qxd3 {[%clk 0:02:30.7]}
15... fxe4 {[%clk 0:02:42.8]} 16. Qxe4 {[%clk 0:02:29.6]} 16... Bf5 {[%clk
0:02:25.6]} 17. Qe3 {[%clk 0:02:27.9]} 17... h6 {[%clk 0:02:22.4]} 18. Nh4
{[%clk 0:02:16.6]} 18... Bh7 {[%clk 0:02:16.2]} 19. f4 {[%clk 0:02:08.6]} 19...
g5 {[%clk 0:02:15.6]} 20. fxg5 {[%clk 0:01:53.8]} 20... Qxg5 {[%clk 0:02:15.1]}
21. Rhe1 {[%clk 0:01:41.2]} 21... Qxe3+ {[%clk 0:02:01.7]} 22. Rxe3 {[%clk
0:01:39.7]} 22... Nd7 {[%clk 0:02:02.3]} 23. g4 {[%clk 0:01:36.1]} 23... Nc5
{[%clk 0:02:00.3]} 24. b4 {[%clk 0:01:07.5]} 24... Na4 {[%clk 0:01:52.5]} 25.
Bd2 {[%clk 0:00:55.3]} 25... Nb6 {[%clk 0:01:47.4]} 26. Rb3 {[%clk 0:00:44.9]}
26... Rf2 {[%clk 0:01:28.6]} 27. Rc3 {[%clk 0:00:38.6]} 27... Na4 {[%clk
0:01:24.5]} 28. Rf3 {[%clk 0:00:35.1]} 28... Re2 {[%clk 0:01:10]} 29. Nf5 {[%clk
0:00:30.4]} 29... Bxf5 {[%clk 0:01:05.1]} 30. gxf5 {[%clk 0:00:27.7]} 30... Kh7
{[%clk 0:01:01.2]} 31. f6 {[%clk 0:00:25.2]} 31... Rg2 {[%clk 0:00:48.6]} 32. f7
{[%clk 0:00:18.8]} 32... Rf8 {[%clk 0:00:48.6]} 33. Rf6 {[%clk 0:00:17.8]} 33...
Rg6 {[%clk 0:00:47.4]} 34. Rxg6 {[%clk 0:00:13.6]} 34... Kxg6 {[%clk 0:00:46.9]}
35. Rg1+ {[%clk 0:00:10.2]} 35... Kxf7 {[%clk 0:00:45.6]} 36. Rf1+ {[%clk
0:00:09.1]} 36... Ke8 {[%clk 0:00:40.8]} 37. Rxf8+ {[%clk 0:00:08.5]} 37... Kxf8
{[%clk 0:00:41.1]} 38. Bxh6+ {[%clk 0:00:09]} 38... Kf7 {[%clk 0:00:41.5]} 39.
Kc2 {[%clk 0:00:07.9]} 39... Kg6 {[%clk 0:00:37.1]} 40. Be3 {[%clk 0:00:04.9]}
40... Nb6 {[%clk 0:00:36.2]} 41. Kd3 {[%clk 0:00:03.8]} 41... Kf5 {[%clk
0:00:32.3]} 42. h4 {[%clk 0:00:03.3]} 42... Kg4 {[%clk 0:00:32]} 43. Bg5 {[%clk
0:00:02.4]} 43... Nd7 {[%clk 0:00:26.7]} 0-1

[Event "Early-Titled-Tuesday-Blitz-June-18-2024"]
[Site "Chess.com"]
[Date "2024.06.18"]
[Round "10"]
[White "artin10862"]
[Black "DenLaz"]
[Result "0-1"]
[WhiteElo "2943"]
[BlackElo "3089"]
[TimeControl "180+1"]
[EndTime "9:57:53 PDT"]
[Termination "DenLaz won on time"]

1. d4 {[%clk 0:03:00.9]} 1... f5 {[%clk 0:03:00.2]} 2. Nc3 {[%clk 0:02:54.7]}
2... Nf6 {[%clk 0:03:00.7]} 3. Bg5 {[%clk 0:02:54.3]} 3... d5 {[%clk 0:03:01.2]}
4. Bxf6 {[%clk 0:02:54]} 4... exf6 {[%clk 0:03:01.7]} 5. e3 {[%clk 0:02:54.1]}
5... Be6 {[%clk 0:03:02]} 6. h4 {[%clk 0:02:52.2]} 6... Nc6 {[%clk 0:03:02]} 7.
h5 {[%clk 0:02:51.6]} 7... Qd7 {[%clk 0:03:02.1]} 8. Qf3 {[%clk 0:02:50.4]} 8...
O-O-O {[%clk 0:02:56.1]} 9. O-O-O {[%clk 0:02:48.2]} 9... Ne7 {[%clk 0:02:54.1]}
10. Bd3 {[%clk 0:02:45.5]} 10... Kb8 {[%clk 0:02:52.8]} 11. Nge2 {[%clk
0:02:43.9]} 11... c6 {[%clk 0:02:47.3]} 12. Ng3 {[%clk 0:02:42.3]} 12... Rg8
{[%clk 0:02:45.1]} 13. Nce2 {[%clk 0:02:40.1]} 13... g5 {[%clk 0:02:37.5]} 14.
hxg6 {[%clk 0:02:39.8]} 14... hxg6 {[%clk 0:02:38.1]} 15. Rh7 {[%clk 0:02:27.9]}
15... Rg7 {[%clk 0:02:24.3]} 16. Rdh1 {[%clk 0:02:23.5]} 16... Bg8 {[%clk
0:02:23.3]} 17. R7h6 {[%clk 0:02:12.5]} 17... Rf7 {[%clk 0:02:14.8]} 18. Rh8
{[%clk 0:02:08.1]} 18... Bg7 {[%clk 0:02:14.8]} 19. R8h3 {[%clk 0:02:02.3]}
19... Ka8 {[%clk 0:02:08.9]} 20. Kb1 {[%clk 0:02:01.3]} 20... Rff8 {[%clk
0:02:04.8]} 21. R3h2 {[%clk 0:01:52.9]} 21... Nc8 {[%clk 0:02:01.4]} 22. Nf4
{[%clk 0:01:52.6]} 22... Qe8 {[%clk 0:01:57]} 23. Nxg6 {[%clk 0:01:17.1]} 23...
Qxg6 {[%clk 0:01:54.7]} 24. Nxf5 {[%clk 0:01:17.2]} 24... Be6 {[%clk 0:01:17.6]}
25. Rh7 {[%clk 0:01:02.3]} 25... Rh8 {[%clk 0:01:14.3]} 26. Ng3 {[%clk
0:00:50.6]} 26... Qf7 {[%clk 0:01:07.1]} 27. b3 {[%clk 0:00:34.7]} 27... Rxh7
{[%clk 0:01:04.6]} 28. Rxh7 {[%clk 0:00:34.5]} 28... Rh8 {[%clk 0:01:04.4]} 29.
Rxh8 {[%clk 0:00:34.4]} 29... Bxh8 {[%clk 0:01:05.3]} 30. Bf5 {[%clk 0:00:33.5]}
30... Nd6 {[%clk 0:01:00.8]} 31. Bxe6 {[%clk 0:00:33.6]} 31... Qxe6 {[%clk
0:01:01.7]} 32. Qh5 {[%clk 0:00:33.7]} 32... Qe8 {[%clk 0:00:59.3]} 33. Qh7
{[%clk 0:00:33]} 33... a6 {[%clk 0:00:54.7]} 34. Kb2 {[%clk 0:00:31.8]} 34...
Qf8 {[%clk 0:00:54.9]} 35. Nh5 {[%clk 0:00:25.8]} 35... f5 {[%clk 0:00:52.7]}
36. Kc1 {[%clk 0:00:24.7]} 36... Qe8 {[%clk 0:00:46.2]} 37. Kd2 {[%clk
0:00:18.5]} 37... Ne4+ {[%clk 0:00:43.4]} 38. Ke2 {[%clk 0:00:18.1]} 38... Bxd4
{[%clk 0:00:40.8]} 39. Qxf5 {[%clk 0:00:09.3]} 39... Bc3 {[%clk 0:00:34]} 40. g4
{[%clk 0:00:09.4]} 40... Qd8 {[%clk 0:00:29.5]} 41. f3 {[%clk 0:00:02.6]} 41...
Nd6 {[%clk 0:00:28.1]} 42. Qg6 {[%clk 0:00:02.8]} 42... Bb4 {[%clk 0:00:15.1]}
43. g5 {[%clk 0:00:02.9]} 43... Qa5 {[%clk 0:00:14.1]} 44. a4 {[%clk 0:00:02.8]}
44... Qc5 {[%clk 0:00:13]} 0-1